Cogmind - Beta 13 @@@ ROGUE MODE // 2024.04.22 @ 02:19:08 Player: Wasdx Result: Destroyed by O5-QOV(R) with Subdweller Laser Performance ------------- Evolutions (0) 0 Regions Visited (3) 600 Robots Destroyed (16) 80 Value Destroyed (371) 371 Prototype IDs (0) 0 Alien Tech Used (0) 0 Bonus (49) 49 TOTAL SCORE: 1100 Bonus ------- Follower Combat Kills 60 Friendly Fire -11 Cogmind --------- Core Integrity 0/250 Matter 238/300 Energy 123/160 System Corruption 3% Temperature Cool (12) Movement Core (150) Ox2 Location -10/Subcaves Parts ------- > --- POWER (1) -------- Light Nuclear Core > --- PROPULSION (2) --- (None) > --- UTILITY (2) ------ Visual Processing Unit > --- WEAPON (2) ------- Riot Gun > --- INVENTORY (5) ---- Light Ion Engine Heavy Assault Rifle Mining Laser Peak State ------------ > --- POWER ------------ Light Nuclear Core > --- PROPULSION ------- Aluminum Leg Carbon-fiber Leg > --- UTILITY ---------- Improved Heat Sink Visual Processing Unit > --- WEAPON ----------- Heavy Assault Rifle Assault Cannon > --- INVENTORY -------- Light Ion Engine Light Nuclear Core Compact Battery Mining Laser [Rating: 17] Favorites ----------- Power Light Nuclear Core Engine Ion Engine Power Core Light Nuclear Core Propulsion Aluminum Leg Leg Aluminum Leg Utility Visual Processing Unit Device Improved Heat Sink Storage Medium Matter Pod Processor Visual Processing Unit Weapon Assault Cannon Energy Gun EM Pulse Gun Ballistic Gun Heavy Assault Rifle Ballistic Cannon Assault Cannon Special Weapon Mining Laser Impact Weapon Flail Build | -11 -10 -10 -10 ------- Run | Yrd Mat Min Sub Slots Evolved . | . . . . Power . | . . . . Propulsion . | . . . . Utility . | . . . . Weapon . | . . . . Parts Attached 26 | 5 7 7 7 Power 5 | 1 1 1 2 Engine 3 | 1 1 . 1 Core 2 | . . 1 1 Reactor . | . . . . Propulsion 5 | 2 1 2 . Treads . | . . . . Leg 5 | 2 1 2 . Wheel . | . . . . Hover . | . . . . Flight . | . . . . Utility 4 | . 2 2 . Device 2 | . . 2 . Storage 1 | . 1 . . Processor 1 | . 1 . . Hackware . | . . . . Protection . | . . . . Artifact . | . . . . Weapon 12 | 2 3 2 5 Energy Gun 2 | 1 . . 1 Energy Cannon . | . . . . Ballistic Gun 6 | 1 2 1 2 Ballistic Cannon 1 | . . 1 . Launcher . | . . . . Special Weapon 2 | . . . 2 Impact Weapon 1 | . 1 . . Slashing Weapon . | . . . . Piercing Weapon . | . . . . Special Melee Weapon . | . . . . Unidentified Prototypes . | . . . . Corrupted Parts 1 | . 1 . . System Corruption 2 | . 2 . . Parts Lost 8 | . 1 2 5 Power 1 | . . . 1 Propulsion 3 | . . 1 2 Utility 2 | . . 1 1 Weapon 2 | . 1 . 1 Highest Loss Streak 5 | . 1 2 5 To Critical Strikes . | . . . . Average Slot Usage (%) 88 | . 76 90 93 Engine 3 | . 14 . 4 Core 10 | . . 13 8 Leg 22 | . 26 20 24 Device 11 | . . 13 13 Processor 13 | . 9 14 14 Energy Gun 1 | . 6 . . Ballistic Gun 13 | . 14 14 12 Ballistic Cannon 11 | . . 13 13 Naked Turns . | . . . . Heaviest Build 14 | 6 8 14 14 Greatest Support 25 | 20 20 25 25 Greatest Overweight (x) 2 | . . . 2 Average Overweight (x) . | . . . . Largest Inventory Capacity 5 | 5 5 5 5 Average Capacity 5 | 5 5 5 5 Most Carried 5 | 2 3 5 5 Average Carried 2 | . 1 3 3 Final Capacity 5 | 5 5 5 5 Final Carried 4 | 1 1 4 3 Class Distribution -------------------- 100% | Mutant Dominant Class ---------------- Mutant | -10/Materials Mutant | -10/Mines Mutant | -10/Subcaves Resources | -11 -10 -10 -10 ----------- Run | Yrd Mat Min Sub Matter Collected 563 | 271 56 182 54 Remotely 54 | . . 54 . Salvage Created 456 | 74 215 118 49 Parts 25 | 4 12 6 3 Haulers Intercepted . | . . . . Recyclers Shooed . | . . . . Parts Field Recycled . | . . . . Retrieved Matter . | . . . . Parts Self-Destructed 6 | . . . 6 Prevented . | . . . . Kills | -11 -10 -10 -10 ------- Run | Yrd Mat Min Sub Combat Hostiles Destroyed 13 | 1 8 3 1 Melee 1 | . 1 . . Guns 7 | 1 5 1 . Cannons 3 | . . 2 1 Classes Destroyed 6 | 2 2 1 1 Worker 1 | 1 . . . Watcher 2 | . 2 . . Swarmer 6 | . 6 . . Grunt 5 | 1 2 2 . Sentry 1 | . . 1 . Subdweller 1 | . . . 1 Best Kill Streak 5 | 2 5 1 1 Combat Bots Only 3 | 1 3 1 1 Max Kills in Single Turn 1 | 1 1 1 1 Gunslinging . | . . . . Exploded . | . . . . Melee 1 | . 1 . . Uniques/NPCs Destroyed . | . . . . Combat | -11 -10 -10 -10 -------- Run | Yrd Mat Min Sub Hostile Shots Fired 118 | 2 56 21 39 Missed 34 | . 16 4 14 Damage Taken 1225 | 23 354 276 572 Core 252 | . 60 30 162 Absorbed by Shields . | . . . . Core Remaining (%) 100 | 100 . . . Volleys Fired 48 | 6 17 12 13 Largest 2 | 2 2 2 2 Hottest 144 | 60 60 67 144 Shots Fired 87 | 12 32 23 20 Gun 62 | 12 32 11 7 Cannon 21 | . . 12 9 Launcher . | . . . . Special 4 | . . . 4 Kinetic 59 | 6 17 23 13 Thermal 4 | . . . 4 Explosive . | . . . . Electromagnetic 24 | 6 15 . 3 Robot Hit Streak 14 | 6 14 4 7 Robot Miss Streak 4 | 4 2 1 2 Penetration Max . | . . . . Secondary Targets 2 | . 2 . . Max Gunslinging Chain 1 | . 1 . . Shots Hit Robots 61 | 8 26 16 11 Core Hits 22 | 4 9 7 2 Critical Kills 1 | . . 1 . Critical Parts Destroyed 4 | . 4 . . Critical Strikes 6 | . 5 1 . Destroy 2 | . 1 1 . Corrupt 1 | . 1 . . Smash 3 | . 3 . . Melee Attacks 12 | . 12 . . Impact 12 | . 12 . . Slashing . | . . . . Piercing . | . . . . Sneak Attacks . | . . . . Combat Hostiles . | . . . . Follow-up Attacks . | . . . . Damage Inflicted 934 | 81 407 263 183 Guns 481 | 81 249 85 66 Cannons 286 | . . 169 117 Explosions . | . . . . Melee 155 | . 155 . . Ramming 12 | . 3 9 . Kinetic 490 | 28 80 254 128 Thermal . | . . . . Explosive . | . . . . Electromagnetic 277 | 53 169 . 55 Impact 155 | . 155 . . Slashing . | . . . . Piercing . | . . . . Highest Corruption 3 | . 3 3 3 Average Corruption 2 | . 2 3 3 Corruption Purged . | . . . . Corruption Blocked . | . . . . Effects 28 | . 3 23 2 Message Errors 7 | . . 7 . Matter Fused 7 | . 2 4 1 Heat Flow Errors 8 | . 1 6 1 Energy Discharges 1 | . . 1 . Parts Fused 1 | . . 1 . Data Loss (minor) 3 | . . 3 . Weapon Failures 1 | . . 1 . Overload Shots . | . . . . Overflow Damage 135 | . 135 . . Projectiles . | . . . . Explosions . | . . . . Melee 135 | . 135 . . Knockbacks 5 | . . 1 4 Impact . | . . . . Kinetic 5 | . . 1 4 Secondary . | . . . . Self-Inflicted Damage . | . . . . Shots . | . . . . Rammed . | . . . . Targets Rammed 5 | . 2 3 . Kicked 5 | . 2 3 . Crushed . | . . . . Highest Temperature 287 | 32 125 287 82 Average Temperature 57 | 17 31 81 49 Received Heat Transfer 363 | 12 42 135 174 Siege Activations . | . . . . Robots Corrupted . | . . . . Combat Hostiles . | . . . . Parts Fried 2 | . 2 . . Impact Corruptions 5 | . 5 . . Robots Melted . | . . . . Combat Hostiles . | . . . . Parts Melted . | . . . . Heat Transferred . | . . . . Parts Sabotaged . | . . . . Parts Stolen . | . . . . Parts Stripped . | . . . . Power Chain Reactions . | . . . . Alert | -11 -10 -10 -10 ------- Run | Yrd Mat Min Sub Peak Influence 266 | 25 266 170 . Initial 103 | . 16 103 . Average 67 | 5 149 53 . Maximum Alert Level 1 | . 1 . . Low Security (%) 96 | 100 79 100 . Level 1 3 | . 20 . . Level 2 . | . . . . Level 3 . | . . . . Level 4 . | . . . . Level 5 . | . . . . High Security . | . . . . Max Security . | . . . . Squads Dispatched 3 | . 3 . . Investigation 1 | . 1 . . Extermination . | . . . . Reinforcement 2 | . 2 . . Assault . | . . . . Garrison . | . . . . Intercept . | . . . . Searches Triggered . | . . . . Construction Impeded . | . . . . Haulers Reinforced . | . . . . Active Scanning Responses . | . . . . Cargo Convoy Interrupts . | . . . . Stealth | -11 -10 -10 -10 --------- Run | Yrd Mat Min Sub Distress Signals 2 | . 2 . . Communications Jammed . | . . . . Distress Signals . | . . . . Times Spotted 30 | 1 14 5 10 Peak Tracking Total 7 | 1 4 2 7 Tactical Retreats . | . . . . Traps | -11 -10 -10 -10 ------- Run | Yrd Mat Min Sub Traps Triggered 2 | . . 2 . Indirectly . | . . . . Trap Hack Attempts . | . . . . Triggered . | . . . . Disarmed . | . . . . Reprogrammed . | . . . . Reused . | . . . . Traps Extracted . | . . . . Installed . | . . . . Triggered . | . . . . Machines | -11 -10 -10 -10 ---------- Run | Yrd Mat Min Sub Machines Disabled 2 | . . 2 . Max in Single Turn 1 | . . 1 . Machines Repaired . | . . . . Machines Dismantled . | . . . . Machines Sabotaged . | . . . . Overloaded Fab Kills . | . . . . Hacking | -11 -10 -10 -10 --------- Run | Yrd Mat Min Sub Machines Accessed 3 | . 2 1 . Terminals 1 | . 1 . . Fabricators . | . . . . Repair Stations 1 | . 1 . . Recycling Units . | . . . . Scanalyzers . | . . . . Garrison Access . | . . . . Total Hacks 9 | . 8 1 . Successful 3 | . 2 1 . Failed 6 | . 6 . . Catastrophic 1 | . 1 . . Database Lockouts . | . . . . Manual 3 | . 2 1 . Terminals 4 | . 4 . . Fabricators . | . . . . Repair Stations 4 | . 4 . . Recycling Units . | . . . . Scanalyzers . | . . . . Garrison Access . | . . . . Terminal Hacks 2 | . 1 1 . Open Door 1 | . . 1 . Locate Traps 1 | . 1 . . Fabricator Hacks . | . . . . Repair Station Hacks 1 | . 1 . . Scan Component 1 | . 1 . . Recycling Unit Hacks . | . . . . Scanalyzer . | . . . . Garrison Access Hacks . | . . . . Unauthorized Hacks . | . . . . Terminals . | . . . . Fabricators . | . . . . Repair Stations . | . . . . Recycling Units . | . . . . Scanalyzers . | . . . . Garrison Access . | . . . . Data Cores Recovered . | . . . . Used . | . . . . Hacking Detections 2 | . 2 . . Full Trace Events 2 | . 2 . . Feedback Events 1 | . 1 . . Corruption 1 | . 1 . . Feedback Blocked . | . . . . Robot Schematics Acquired . | . . . . Robots Built . | . . . . Authchips . | . . . . Time . | . . . . Total Robot Build Rating . | . . . . Part Schematics Acquired . | . . . . Parts Built . | . . . . Authchips . | . . . . Time . | . . . . Total Part Build Rating . | . . . . Parts Repaired . | . . . . Time . | . . . . Parts Recycled . | . . . . Recycled Matter . | . . . . Retrieved Matter . | . . . . Retrieved Components . | . . . . Parts Scanalyzed . | . . . . Part Schematics Acquired . | . . . . Parts Damaged . | . . . . Bothacking | -11 -10 -10 -10 ------------ Run | Yrd Mat Min Sub Used RIF Installer . | . . . . Robots Hacked . | . . . . Non-combat . | . . . . Combat . | . . . . Robot Hacks Applied . | . . . . Relay Couplers Released . | . . . . Fabnet Peak Effective % . | . . . . Robots Rewired . | . . . . Allies Hacked . | . . . . Hacks Repelled . | . . . . Allies | -11 -10 -10 -10 -------- Run | Yrd Mat Min Sub Total Allies 1 | . . 1 . Largest Group 1 | . . 1 . Highest-Rated Group 31 | . . 31 . Highest-Rated Ally 31 | . . 31 . Total Orders . | . . . . Ally Attacks 4 | . . 4 . Total Damage 44 | . . 44 . Kills 2 | . . 2 . Allies Corrupted . | . . . . Allies Melted . | . . . . Intel | -11 -10 -10 -10 ------- Run | Yrd Mat Min Sub Robot Analysis Total . | . . . . Derelict Logs Recovered 3 | . . 2 1 Drone Launches . | . . . . Drone Recoveries . | . . . . Exploration | -11 -10 -10 -10 ------------- Run | Yrd Mat Min Sub Turns Passed 1550 | 103 248 993 206 Spaces Moved 1076 | 77 123 754 122 Core 27 | 24 . . 3 Treads . | . . . . Legs 1049 | 53 123 754 119 Wheels . | . . . . Hover . | . . . . Flight . | . . . . Fastest Speed 50 | 50 120 120 120 Average Speed 118 | 98 120 120 120 Slowest Speed 150 | 120 120 120 150 Overloaded Moves . | . . . . Propulsion Burnouts . | . . . . Robots Hopped . | . . . . Cave-ins Triggered . | . . . . Exploration Rate (%) 37 | 7 30 99 12 Regions Visited 3 Branch Regions 2 Pre-discovered Areas . | . . . . Known Exits Taken . | . . . . Unknown Exits Taken 3 | 1 1 1 . Scrap Searched 2 | . . 1 1 Spaces Dug . | . . . . Terrain Destroyed 3 | . . 2 1 Melee . | . . . . Projectile 3 | . . 2 1 AOE . | . . . . Terrain Rammed . | . . . . Walls Destroyed . | . . . . Machines Disabled . | . . . . Actions | -11 -10 -10 -10 --------- Run | Yrd Mat Min Sub Total 1246 | 93 178 820 155 Wait 47 | . 8 33 6 Move 1073 | 76 122 753 122 Hop . | . . . . Pick Up 24 | 6 6 10 2 Fast Attach . | . . . . Attach 23 | 5 6 7 5 Detach 3 | . . . 3 Swap 3 | . 1 . 2 Drop 8 | . 4 2 2 Fire 48 | 6 17 12 13 Melee 12 | . 12 . . Ram . | . . . . Kick 5 | . 2 3 . Crush . | . . . . Escape Stasis . | . . . . Rewire . | . . . . Trap . | . . . . Miscellaneous . | . . . . Route ------- -11/Scrapyard -10/Materials -10/Mines (discovered 4 exits: [*Mat x2] / [*Exi] / [*Sub]) -10/Subcaves (discovered 1 exit: Rec) History --------- Turn | Location | Event 2 | -11/Scrapyard | Met Revision 17 70 | -11/Scrapyard | Discovered new exit (range 8) 104 | -11/Scrapyard | Entered Materials 264 | -10/Materials | Discovered new exit (range 17) 316 | -10/Materials | Build established: Mutant 352 | -10/Materials | Entered Mines 359 | -10/Mines | Met a Derelict who couldn't figure out how to use a Trap Extractor 428 | -10/Mines | Deemed a non-threat by the Exiles lab entrance 429 | -10/Mines | Discovered new exit (range 5) 614 | -10/Mines | Discovered new exit (range 16) 630 | -10/Mines | Joined a pair of Derelicts in attacking an 0b10 outpost 781 | -10/Mines | Discovered new exit (range 10) 785 | -10/Mines | Learned Materials security intel 811 | -10/Mines | Received a Rocket Launcher from a helpful Derelict 990 | -10/Mines | Received a Mining Laser from a helpful Derelict 1326 | -10/Mines | Discovered new exit (range 13) 1345 | -10/Mines | Entered Subcaves 1346 | -10/Subcaves | Identified exit to Recycling 1370 | -10/Subcaves | Learned Materials trap positions 1495 | -10/Subcaves | Ambushed by swarm of Subdwellers 1501 | -10/Subcaves | Ambushed by Subdwellers from Twisted Machinery 1504 | -10/Subcaves | Core integrity fell below 50% 1550 | -10/Subcaves | Core integrity fell below 20% 1551 | -10/Subcaves | Destroyed by O5-QOV(R) with Subdweller Laser Last Messages --------------- grouchy Sub to deal with. Who's the new fellow?" UW-U6X(R) knocked back. UW-U6X(R) suffers critical hit (Destroy). UW-U6X(R) destroyed. 7X-7RM(h) destroyed. 4Y-LBI(R) emerges from the Twisted Machinery. System corrupted: Heat flow error (+114). FV-WSL(R) angrily emerges from the Twisted Machinery. 8C-K73(g) destroyed. JZ-CE9(R) affixes Scrap Shield Fragment to Scrap Shield. X3-4K9(R) emerges from the Twisted Machinery. Lgt. Ion Engine destroyed. Carbon-fiber Leg destroyed. Aluminum Leg destroyed. X3-4K9(R) knocked back. Assault Cannon destroyed. Imp. Heat Sink destroyed. Map ----- +----------------------------------------------------+ | ????????????????# ## ##??# #####??????? | | ????????????????### ####???# "" """?????? | | ??????????????????## ##??????## ## """??????? | | ???????????????????# ###???????# ##??? ""?????? | | ???????????????????##??# ####### ##??????????? | | ???????????????????????# " ""#??????????? | | ???????????????????????## *%!"""""#??????????? | | ????????????????????????# = & "####??????????? | | ????????????????????????# %%"##?????????????? | | ???????????????????????# "#*=##?????????#???#? | | ???????????????????????# ###%*####??????# ? ## | | ???????????????????????# #??## "##????? # | | ???????????????????????# #???# ""##???? # | | ???????????????????????# ???## """ #??#? # | | ???????????????????????##???## """"""#? ## # | | ???????????????????????????## ## # | | ??????????????????????????## # | | ?????????????????????????# ## # | | ?????????????????????????# ##"# ##?# ???#? | | ?????????????????????????# #?# #### ##??# #????? | | ?????????????????????????###??###??# #### ##???? | | ???????????????????????????????????# # ###?? | | ???????????????????????????????????## ## #?? | | ????????????????????????????????????# ## ### | | ???????????????????????####?????????# # | | ??????????????????????## @#?????????## # | | ??????????????????????# RR#####??????##%= # | | ??????????????????????#;R R ##?????##* #### | | ??????????????????????### #####?#" ####??? | | ????????????????????????# ##"[&&%##?????? | | ????????????????????????# # " "!= ##?????? | | ????????????????????????# ### ![% % ## # | | ???????????????????????# ##?## =%! #? | | ???????????????????????# #???## =[ #? | | ??????????????????????# #????#### # | | ????????????????????? #???????## | | ???????????????????? ????????##### | | ??????????????????? ????????????## | | ?????????????????? ### ?????????????? | | ????????????????? ??# ?????????????? | | ????????????????? ???# ??????????????## # | | ????????????????? ????# ????????????????# # | | ??????????????????????? ?????????????????# # | | ??????????????????????? #?????????????????? | | ???????????????????????? #??????????????????? | | ??????????????????????????????????????????????? | | ?????????????????????????????????????????????????? | | ?????????????????????????????????????????????????? | | ?????????????????????????????????????????????????? | | ?????????????????????????????????????????????????? | +----------------------------------------------------+ Best States ------------- Heat Dissipation 39 Energy Generation 14 Energy Capacity 250 Matter Stores 300 Matter Capacity 300 Sight Range 18 Terrain Scan Density 10 Evasion (%) 55 Item Schematics ----------------- None Robot Schematics ------------------ None Fabricated ------------ Nothing Alien Tech Used ----------------- None Achievements -------------- None Challenges ------------ None Game ------ Seed GrapheneLobotomyGravjet Manual? 0 Play Time 00:25:42 Cumulative 2.7 hours Start 2024.04.22 @ 01:48:24 End 2024.04.22 @ 02:19:08 Sessions 1 Manual Loads 0 Difficulty Rogue Special Mode None Game No. 3 Rogue 3 Adventurer 0 Explorer 0 Win Type - Total 0 Types 0/0/0/0/0/0/0/0/0 Lore% 0 Gallery% 5 Achievement% 4 Wizard Run 0 Options --------- Layout 1 ASCII 0 Keyboard 0 Movement Mouse Keybinds 0 Fullscreen 1 Font 32/SmallcapsGlow Map View 50x35 Zoom Use 0% Tactical HUD 0 Map Filters NONE Filters NONE Steam 1 RUN: 16a8dbd1-1ab7-4df6-b767-68141a31437d